[Event "FIDE Womens Grand Prix-I 2022-23"]
[Site "Nur-Sultan"]
[Date "2022.09.28"]
[Round "10.3"]
[White "Lagno, Kateryna"]
[Black "Abdumalik, Zhansaya"]
[Result "1/2-1/2"]
[ECO "C92"]
[WhiteElo "2547"]
[BlackElo "2503"]
[Annotator "TA"]
[PlyCount "26"]
[EventDate "2022.09.15"]
[EventType "tourn"]
[EventCountry "KAZ"]
[SourceTitle "playchess.com"]
[Source "ChessBase"]
[SourceQuality "1"]
[TimeControl "40/5400+30:1800+30"]

{[%evp 25,26,0,49]} 1. e4 {[%emt 0:00:02]} e5 {[%emt 0:00:05]} 2. Nf3 {[%emt 0:00:11]} Nc6 {[%emt 0:00:05]} 3. Bb5 {[%emt 0:00:08]} a6 {[%emt 0:00:06]} 4. Ba4 {[%emt 0:00:11]} Nf6 {[%emt 0:00:06]} 5. O-O {[%emt 0:00:24]} Be7 {[%emt 0:00:46]} 6. Re1 {[%emt 0:00:30]} b5 {[%emt 0:00:06]} 7. Bb3 {[%emt 0:00:07]} O-O {[%emt 0:00:14]} 8. c3 {[%emt 0:00:31]} d6 {[%emt 0:00:13]} 9. h3 {[%emt 0:00:23]} Re8 {[%emt 0:00:21] [#]} 10. Ng5 $146 {[%emt 0:00:29]} ({Predecessor:} 10. d4 Bb7 11. Ng5 Rf8 12. Nf3 Re8 13. Ng5 Rf8 14. Nf3 Re8 {½-½ (14) Giri,A (2761)-Maghsoodloo,P (2699) Chess.com INT 2022}) 10... Rf8 {[%emt 0:00:13]} 11. Nf3 {[%emt 0:00:08]} Re8 {[%emt 0:00:15]} 12. Ng5 {[%emt 0:00:26]} Rf8 {[%emt 0:00:08]} 13. Nf3 {[%emt 0:00:04]} Re8 {[%emt 0:00:04] 13...Nb8 is setting a new trend.} 1/2-1/2

[Event "FIDE Womens Grand Prix-I 2022-23"]
[Site "Nur-Sultan"]
[Date "2022.09.28"]
[Round "10.4"]
[White "Kashlinskaya, Alina"]
[Black "Zhu, Jiner"]
[Result "0-1"]
[ECO "E57"]
[WhiteElo "2491"]
[BlackElo "2464"]
[Annotator "TA"]
[PlyCount "48"]
[EventDate "2022.09.15"]
[EventType "tourn"]
[EventCountry "KAZ"]
[SourceTitle "playchess.com"]
[Source "ChessBase"]
[SourceQuality "1"]
[TimeControl "40/5400+30:1800+30"]

{[%evp 22,48,11,0,19,0,37,38,34,15,4,-82,-64,-52,-75,-292,-287,-268,-265,-490,-481,-477,-495,-495,-493,-494,-489,-470,-367]} 1. d4 {[%emt 0:00:03]} Nf6 {[%emt 0:00:12]} 2. c4 {[%emt 0:00:07]} e6 {[%emt 0:00:08]} 3. Nc3 {[%emt 0:00:04]} d5 {[%emt 0:00:10]} 4. Bg5 {[%emt 0:00:27]} dxc4 {[%emt 0:02:22]} 5. e3 {[%emt 0:00:18]} c5 {[%emt 0:00:39]} 6. Bxc4 {[%emt 0:06:53]} cxd4 {[%emt 0:01:21]} 7. exd4 {[%emt 0:00:06]} Be7 {[%emt 0:00:31]} 8. Nf3 {[%emt 0:00:06]} Nc6 {[%emt 0:00:38]} 9. O-O {[%emt 0:00:24]} O-O {[%emt 0:00:11]} 10. a3 {[%emt 0:04:37]} b6 {[%emt 0:03:30] 10...h6 deserves study.} 11. Qd3 {[%emt 0:02:54]} Bb7 {[%emt 0:00:44]} 12. Rad1 {[%emt 0:00:44]} h6 {[%emt 0:10:03] E57: Nimzo-Indian: Rubinstein: Main Line: 7...Nc6 8 a3 dxc4 9 Bxc4 cxd4.} 13. Bc1 {[%emt 0:08:59] [#]} Qd6 $146 {[%emt 0:13:40]} ({Predecessor:} 13... Re8 14. Rfe1 Bf8 15. b4 a5 16. b5 Ne7 17. Rxe6 Bxf3 18. Rxf6 Bxd1 19. Rxf7 Rc8 20. Bd2 {0-1 (33) Colovic,A (2443)-Salgado Lopez,I (2599) Tornelo INT 2021}) 14. Rfe1 {[%emt 0:04:00]} Rad8 {[%emt 0:11:34] White is slightly better.} 15. Ba2 {[%emt 0:04:47]} Rfe8 {[%emt 0:02:58]} 16. Bxh6 {[%emt 0:14:04]} gxh6 $17 {[%emt 0:00:45]} 17. Rxe6 {[%emt 0:00:40]} Qf4 {[%emt 0:07:51] [#] aiming for ...Nxd4.} (17... fxe6 $2 18. Qg6+ Kh8 19. Qxh6+ Kg8 20. Qg6+ Kf8 21. Ng5 Qxh2+ 22. Kxh2 $18) 18. g3 $2 {[%emt 0:17:52] This move loses the game for White.} (18. Rxc6 $17 Bxc6 19. Ne5) 18... Nb4 $19 {[%emt 0:14:52]} 19. gxf4 {[%emt 0:09:49]} Nxd3 {[%emt 0:00:06] The board is on fire.} 20. Rxf6 $2 {[%emt 0:01:44]} (20. Rxe7 Rxe7 21. Rxd3 Bxf3 22. Rxf3) 20... Bxf6 {[%emt 0:00:15] This bishop pair is nice. Black is clearly winning.} 21. Rxd3 {[%emt 0:00:03] [#]} Rxd4 $3 {[%emt 0:02:11][%mdl 512]} 22. Re3 {[%emt 0:02:28]} Rxe3 {[%emt 0:00:48]} 23. fxe3 {[%emt 0:00:02]} Rd3 {[%emt 0:00:12]} ({Inferior is} 23... Bxf3 24. exd4 Bxd4+ 25. Kf1 $17) 24. Kf2 {[%emt 0:00:05]} Bxc3 {[%emt 0:00:46] Weighted Error Value: White=0.61/Black=0.05 (flawless)} 0-1

[Event "FIDE Womens Grand Prix-I 2022-23"]
[Site "Nur-Sultan"]
[Date "2022.09.28"]
[Round "10.5"]
[White "Assaubayeva, Bibisara"]
[Black "Paehtz, Elisabeth"]
[Result "0-1"]
[ECO "E11"]
[WhiteElo "2443"]
[BlackElo "2477"]
[Annotator "TA"]
[PlyCount "86"]
[EventDate "2022.09.15"]
[EventType "tourn"]
[EventCountry "KAZ"]
[SourceTitle "playchess.com"]
[Source "ChessBase"]
[SourceQuality "1"]
[TimeControl "40/5400+30:1800+30"]

{[%evp 10,86,27,20,25,22,24,23,25,0,21,25,25,25,24,27,30,12,12,12,18,18,30,30,30,28,28,26,33,23,28,10,25,24,35,35,37,39,24,24,54,48,57,28,28,26,44,26,37,20,29,0,0,-12,0,-60,0,-62,-20,-79,-87,-180,-180,-180,-180,-187,-187,-443,-442,-474,-468,-463,-464,-460,-449,-427,-439,-428,-416]} 1. d4 {[%emt 0:00:08]} Nf6 {[%emt 0:00:07]} 2. c4 {[%emt 0:00:07]} e6 {[%emt 0:00:03]} 3. Nf3 {[%emt 0:00:06]} Bb4+ {[%emt 0:00:04]} 4. Bd2 {[%emt 0:00:06]} a5 {[%emt 0:00:12]} 5. a3 {[%emt 0:00:07]} Bxd2+ {[%emt 0:00:06]} 6. Qxd2 {[%emt 0:00:04]} b6 {[%emt 0:00:03] E11: Bogo-Indian.} 7. Nc3 {[%emt 0:00:07]} Bb7 {[%emt 0:00:04]} 8. e3 {[%emt 0:02:13]} O-O {[%emt 0:01:30] White has an edge.} 9. Qc2 {[%emt 0:01:24]} d5 {[%emt 0:00:30]} (9... c5 $5 {[%cal Rb7f3]}) 10. cxd5 {[%emt 0:01:52]} exd5 {[%emt 0:00:04]} 11. Be2 {[%emt 0:06:55]} Qe7 {[%emt 0:00:53]} 12. O-O {[%emt 0:01:11]} Nbd7 {[%emt 0:00:34]} 13. Rfd1 {[%emt 0:02:31]} g6 {[%emt 0:07:54]} 14. Rac1 {[%emt 0:08:16]} Rac8 {[%emt 0:03:59] [#]} 15. Qb3 $146 {[%emt 0:07:26]} ({Predecessor:} 15. h3 Rfe8 16. Qb3 Kg7 17. Bd3 h6 18. Ne2 c6 19. Nf4 Kg8 20. Nd2 Rc7 21. Qc3 {½-½ (40) Chaika,L (2340)-Deneuville,C (2201) ICCF email 2017}) 15... Qe6 {[%emt 0:07:06]} 16. Ng5 {[%emt 0:05:15][%cal Bf3g5,Bg5h3,Bh3f4][%mdl 32]} Qe7 {[%emt 0:04:53]} 17. Nh3 {[%emt 0:01:08]} c6 {[%emt 0:04:19]} 18. Nf4 {[%emt 0:00:49]} Rb8 {[%emt 0:02:21]} 19. g3 {[%emt 0:06:17]} Rfe8 {[%emt 0:03:12]} 20. Bf3 {[%emt 0:03:18]} Qd6 {[%emt 0:01:52]} 21. Qc2 {[%emt 0:03:20]} Rbc8 {[%emt 0:04:23]} 22. Qb1 {[%emt 0:07:44]} Nf8 {[%emt 0:09:25]} 23. b4 {[%emt 0:06:54]} axb4 {[%emt 0:00:06]} 24. axb4 {[%emt 0:03:19]} Ne6 {[%emt 0:02:35]} 25. Nxe6 {[%emt 0:03:01]} Qxe6 {[%emt 0:05:05]} 26. Qb2 {[%emt 0:03:01]} b5 {[%emt 0:03:48]} 27. Ra1 {[%emt 0:03:19]} Re7 {[%emt 0:01:12]} 28. Ra7 {[%emt 0:04:55]} Rce8 {[%emt 0:00:35]} 29. Bg2 {[%emt 0:02:06]} h5 {[%emt 0:02:42]} 30. Qb3 {[%emt 0:02:49]} Bc8 {[%emt 0:05:26]} 31. Rxe7 {[%emt 0:00:20]} Qxe7 {[%emt 0:00:07]} 32. h3 {[%emt 0:07:42]} (32. Rc1 $11) 32... Bf5 {[%emt 0:00:44]} ({Black should try} 32... h4 $15 33. Ne2 hxg3 34. Nxg3 Be6) 33. Ne2 {[%emt 0:02:09]} ({White should play} 33. Ra1 $11) 33... Qd7 {[%emt 0:03:40] Black is more active.} 34. Kh2 {[%emt 0:00:46]} (34. Nf4 $11 {keeps the balance.}) 34... Ne4 $17 {[%emt 0:03:25][%cal Bf6e4,Be4d6,Bd6c4][%mdl 32]} 35. f3 {[%emt 0:01:19] [#]} (35. Bxe4 $17 Bxe4 36. Qb2) 35... Nd6 $1 $19 {[%emt 0:01:00] Hoping for ...Nc4.} 36. Nf4 {[%emt 0:00:02]} Nc4 {[%emt 0:01:11]} 37. Re1 {[%emt 0:00:02]} h4 {[%emt 0:06:16]} 38. gxh4 {[%emt 0:01:03]} (38. g4 Qd6 39. Kh1 (39. gxf5 $2 Rxe3 40. Rxe3 Qxf4+ 41. Kh1 Nxe3 $19)) 38... Qe7 {[%emt 0:00:39] Black is clearly winning.} 39. e4 {[%emt 0:02:27]} Qxh4 {[%emt 0:00:29]} 40. Nd3 {[%emt 0:00:01]} dxe4 {[%emt 0:02:32]} 41. fxe4 {[%emt 0:30:02]} Rxe4 {[%emt 0:34:50]} 42. Rxe4 {[%emt 0:01:13]} ({Stronger than} 42. Bxe4 Nd2 43. Qc2 Qxh3+ 44. Kg1 Qg3+ 45. Kh1 Bxe4+ 46. Rxe4 Nxe4 47. Qxc6 Qh3+ 48. Kg1 Qg4+ 49. Kh2 Qe2+ 50. Kg1 Qd1+ 51. Kg2 Qxd3) 42... Bxe4 {[%emt 0:01:39]} 43. Bxe4 {[%emt 0:00:00]} Qxe4 {[%emt 0:00:00] Weighted Error Value: White=0.28 (precise) /Black=0.07 (flawless)} 0-1

[Event "FIDE Womens Grand Prix-I 2022-23"]
[Site "Nur-Sultan"]
[Date "2022.09.28"]
[Round "10.6"]
[White "Tan, Zhongyi"]
[Black "Wagner, Dinara"]
[Result "1-0"]
[ECO "A11"]
[WhiteElo "2525"]
[BlackElo "2358"]
[Annotator "TA"]
[PlyCount "89"]
[EventDate "2022.09.15"]
[EventType "tourn"]
[EventCountry "KAZ"]
[SourceTitle "playchess.com"]
[Source "ChessBase"]
[SourceQuality "1"]
[TimeControl "40/5400+30:1800+30"]

{[%evp 16,88,0,0,3,0,0,0,3,0,1,5,14,20,27,22,37,21,26,31,33,9,18,11,5,10,20,8,35,10,30,11,37,37,39,39,32,39,41,23,60,54,54,50,58,50,63,59,53,55,87,87,102,70,213,207,179,187,372,375,371,358,330,339,331,325,566,609,609,526,1728,1726,29998,29999,29999]} 1. Nf3 {[%emt 0:00:03]} d5 {[%emt 0:00:13]} 2. g3 {[%emt 0:00:06]} c6 {[%emt 0:01:24]} 3. Bg2 {[%emt 0:00:07]} Nf6 {[%emt 0:00:11]} 4. O-O {[%emt 0:00:17]} Bg4 {[%emt 0:00:30]} 5. c4 {[%emt 0:00:07]} e6 {[%emt 0:02:01]} 6. cxd5 {[%emt 0:00:25]} Bxf3 {[%emt 0:06:14]} 7. Bxf3 {[%emt 0:00:06]} cxd5 {[%emt 0:00:02]} 8. d4 {[%emt 0:00:25]} Nc6 {[%emt 0:00:16]} 9. Nc3 {[%emt 0:00:10]} Be7 {[%emt 0:05:10] A11: English Opening: 1...c6.} 10. b3 {[%emt 0:01:52]} O-O {[%emt 0:01:01]} 11. Bb2 {[%emt 0:00:10]} Rc8 {[%emt 0:01:39] The position is equal.} 12. e3 {[%emt 0:00:14]} Bb4 {[%emt 0:06:37] [#]} 13. Rc1 $146 {[%emt 0:01:13]} ({Predecessor:} 13. Qd3 e5 14. Bg2 exd4 15. exd4 Bxc3 16. Bxc3 Re8 17. Rfe1 Qd7 18. a4 a6 19. b4 Rxe1+ 20. Bxe1 {½-½ (43) Gabuzyan,H (2560)-Andriasian,Z (2609) Yerevan 2015}) 13... Bxc3 {[%emt 0:06:52]} 14. Rxc3 {[%emt 0:00:38]} Qd7 {[%emt 0:02:46]} 15. Ba3 {[%emt 0:02:24]} Ne7 {[%emt 0:05:05]} 16. Qd3 {[%emt 0:00:28]} Rxc3 {[%emt 0:01:08]} 17. Qxc3 {[%emt 0:00:06]} Rc8 {[%emt 0:00:06] Prevents Qc5.} 18. Qd3 {[%emt 0:03:30]} Nf5 {[%emt 0:03:32]} 19. Rc1 {[%emt 0:00:50]} Rxc1+ {[%emt 0:00:36]} 20. Bxc1 {[%emt 0:00:05]} Qc6 {[%emt 0:03:03]} 21. Bb2 {[%emt 0:00:05]} h6 {[%emt 0:06:21]} 22. a4 {[%emt 0:00:22]} a6 {[%emt 0:00:40]} 23. Be2 {[%emt 0:01:05]} Ne7 {[%emt 0:03:24]} 24. f3 {[%emt 0:02:37]} h5 {[%emt 0:04:53]} 25. Qc3 {[%emt 0:01:37]} Qxc3 {[%emt 0:07:51]} 26. Bxc3 $14 {[%emt 0:00:05][%mdl 4096] Endgame KBB-KNN} Nc6 {[%emt 0:00:02]} 27. b4 {[%emt 0:03:02]} Nd7 {[%emt 0:04:09]} 28. b5 {[%emt 0:02:29]} axb5 {[%emt 0:00:50]} 29. Bxb5 {[%emt 0:00:10]} Ndb8 {[%emt 0:04:12]} 30. Kf2 {[%emt 0:00:20]} g5 {[%emt 0:07:03]} 31. h4 {[%emt 0:00:30]} gxh4 {[%emt 0:02:36]} 32. gxh4 {[%emt 0:00:06]} Kg7 {[%emt 0:00:04]} 33. e4 {[%emt 0:01:21]} Ne7 {[%emt 0:00:52]} 34. Bb4 {[%emt 0:01:09]} Nec6 {[%emt 0:09:03] This move loses the game for Black.} (34... Nbc6 $14 35. Bc5 Kf6) 35. Bd6 $18 {[%emt 0:00:54]} Na6 {[%emt 0:04:37]} 36. Ke3 {[%emt 0:06:53]} Nab4 $2 {[%emt 0:00:56]} (36... Kg6 37. Bxc6 bxc6) 37. Kd2 {[%emt 0:03:14] [#] Black must now prevent Bxb4.} Na6 {[%emt 0:01:06]} 38. Kc3 {[%emt 0:02:38]} Kg6 {[%emt 0:00:22]} 39. Bd3 {[%emt 0:01:25] White threatens exd5+ and mate.} Kf6 {[%emt 0:00:16]} 40. f4 {[%emt 0:01:03][%cal Bf3f4,Bf4f5,Bf5f6][%mdl 32] e5+ is the strong threat.} Nab8 $2 {[%emt 0:02:03]} (40... dxe4 {was worth a try.} 41. Bxe4 Na5) 41. e5+ {[%emt 0:30:45]} Kg7 {[%emt 0:30:05]} 42. f5 {[%emt 0:00:05] [#] And now f6+ would win.} Nd7 {[%emt 0:00:00]} 43. f6+ {[%emt 0:00:00]} Kh6 {[%emt 0:00:00]} 44. Ba3 {[%emt 0:00:00][%cal Ra3c1]} Na5 {[%emt 0:00:00]} 45. Bc1# {[%emt 0:00:00] Weighted Error Value: White=0.05 (flawless) /Black=0.47} 1-0

[Event "FIDE Womens Grand Prix-I 2022-23"]
[Site "Nur-Sultan"]
[Date "2022.08.29"]
[Round "11.1"]
[White "Wagner, Dinara"]
[Black "Shuvalova, Polina"]
[Result "1-0"]
[ECO "E49"]
[WhiteElo "2358"]
[BlackElo "2510"]
[Annotator "TA"]
[PlyCount "69"]
[EventDate "2022.09.15"]
[EventType "tourn"]
[EventCountry "KAZ"]
[SourceTitle "playchess.com"]
[Source "ChessBase"]
[SourceQuality "1"]
[TimeControl "40/5400+30:1800+30"]

{[%evp 15,69,1,0,0,0,0,12,0,0,-12,0,0,16,18,36,39,38,41,56,52,49,32,39,15,18,13,51,40,58,46,52,13,33,0,876,851,852,506,575,579,567,567,529,450,448,450,449,423,420,420,547,454,469,433,1141,1083]} 1. d4 {[%emt 0:00:02]} Nf6 {[%emt 0:00:04]} 2. c4 {[%emt 0:00:05]} e6 {[%emt 0:00:02]} 3. Nc3 {[%emt 0:00:05]} Bb4 {[%emt 0:00:04]} 4. e3 {[%emt 0:00:16]} O-O {[%emt 0:00:06]} 5. Bd3 {[%emt 0:00:05]} d5 {[%emt 0:03:11]} 6. a3 {[%emt 0:00:18]} Bxc3+ {[%emt 0:00:52]} 7. bxc3 {[%emt 0:00:19]} dxc4 {[%emt 0:00:17]} 8. Bxc4 {[%emt 0:00:05]} c5 {[%emt 0:00:02]} 9. Bd3 {[%emt 0:00:07] E49: Nimzo-Indian: Rubinstein: 5 Bd3 d5 6 a3 Bxc3+ 7 bxc3.} Qc7 {[%emt 0:02:19]} 10. Bb2 {[%emt 0:00:32]} b6 {[%emt 0:00:27]} 11. Ne2 {[%emt 0:15:00][%cal Bg1e2,Be2g3,Bg3f5][%mdl 32] The position is equal.} Ba6 {[%emt 0:06:03]} 12. O-O {[%emt 0:04:03]} Bxd3 {[%emt 0:06:15]} 13. Qxd3 {[%emt 0:00:13] [#]} c4 $146 {[%emt 0:00:12]} ({Predecessor:} 13... Nc6 14. e4 Rfd8 15. f3 Ne5 16. Qb5 Qc6 17. Qxc6 Nxc6 18. Rad1 Na5 19. Kf2 Nc4 {0-1 (48) Song,M (2421)-Pichot,A (2630) Chess.com INT 2020}) 14. Qc2 {[%emt 0:00:42]} e5 {[%emt 0:01:12]} 15. e4 {[%emt 0:02:03]} Re8 {[%emt 0:00:21]} 16. Ng3 {[%emt 0:01:00]} Nc6 {[%emt 0:04:24][%cal Bb8c6,Bc6a5,Ba5b3,Bb3c5,Bc5d3][%mdl 32]} 17. Rad1 {[%emt 0:01:52]} Rad8 {[%emt 0:01:02]} 18. d5 {[%emt 0:11:32]} Na5 {[%emt 0:00:19]} 19. Bc1 {[%emt 0:00:05] Black must now prevent Bg5.} Nd7 $1 {[%emt 0:00:47]} 20. Nf5 {[%emt 0:05:33]} Nb3 {[%emt 0:01:44]} 21. Be3 {[%emt 0:13:28]} Nbc5 {[%emt 0:12:44]} 22. Qe2 {[%emt 0:03:17]} Nd3 $1 {[%emt 0:02:38]} ({Less strong is} 22... Nf6 23. d6 (23. Qxc4 Nfxe4 24. Bxc5 Nxc5 $14) 23... Qb7 24. Bxc5 (24. Qxc4 Qxe4 25. Ne7+ Kf8 $11) 24... bxc5 25. Qe3 $16 (25. Qxc4 g6 $16)) 23. Qg4 {[%emt 0:00:56][%csl Gf5][%cal Rg4g7] [#]} g6 {[%emt 0:00:07]} 24. f4 $40 {[%emt 0:07:04][%mdl 128] Black needs to defend precisely.} Kf8 $2 {[%emt 0:33:24][%mdl 8192]} (24... exf4 $11 25. Bxf4 Nxf4 26. Nh6+ Kg7 27. Rxf4 Qc5+ 28. Kh1 f6 29. Nf5+ (29. Qh4 Qf8 $11) 29... Kg8) 25. fxe5 $18 {[%emt 0:12:54]} Qxe5 {[%emt 0:00:59]} 26. Qg5 {[%emt 0:08:20] Bd4 is the strong threat.} gxf5 {[%emt 0:08:50]} 27. Bd4 {[%emt 0:00:14]} f4 {[%emt 0:01:38]} 28. Bxe5 {[%emt 0:00:49]} N7xe5 {[%emt 0:00:05]} 29. Rxf4 {[%emt 0:06:19]} Nxf4 {[%emt 0:00:06]} 30. Qxf4 {[%emt 0:00:01]} Rd6 {[%emt 0:04:27] Against Qf6} 31. Rf1 {[%emt 0:00:08]} Kg7 {[%emt 0:04:20]} 32. Qf5 {[%emt 0:00:57]} b5 {[%emt 0:02:56]} 33. Rf4 {[%emt 0:00:42] White is clearly winning.} a5 {[%emt 0:00:22]} 34. Rh4 {[%emt 0:03:47]} Ng6 {[%emt 0:02:27] [#]} (34... Rg6 $142 35. Rf4 Ra6) 35. Rxh7+ $3 {[%emt 0:00:47][%mdl 512] Weighted Error Value: White=0.29 (precise) /Black=0.21 (precise)} 1-0

[Event "FIDE Womens Grand Prix-I 2022-23"]
[Site "Nur-Sultan"]
[Date "2022.08.29"]
[Round "11.2"]
[White "Paehtz, Elisabeth"]
[Black "Tan, Zhongyi"]
[Result "1/2-1/2"]
[ECO "B22"]
[WhiteElo "2477"]
[BlackElo "2525"]
[Annotator "TA"]
[PlyCount "49"]
[EventDate "2022.09.15"]
[EventType "tourn"]
[EventCountry "KAZ"]
[SourceTitle "playchess.com"]
[Source "ChessBase"]
[SourceQuality "1"]
[TimeControl "40/5400+30:1800+30"]

{[%evp 14,49,0,0,18,23,18,7,42,33,43,50,50,19,29,0,16,15,14,25,41,47,39,31,34,31,30,26,32,25,35,0,0,0,26,0,0,0]} 1. e4 {[%emt 0:00:01][%cal Be2e4,Be4e5][%mdl 32]} c5 {[%emt 0:00:48]} 2. c3 {[%emt 0:00:05][%cal Bc2c3,Bc3d4,Bd4e5][%mdl 32]} Nf6 {[%emt 0:01:37]} 3. e5 {[%emt 0:00:04]} Nd5 {[%emt 0:00:04]} 4. Nf3 {[%emt 0:00:07]} d6 {[%emt 0:00:08]} 5. d4 {[%emt 0:00:13]} cxd4 {[%emt 0:01:05]} 6. cxd4 {[%emt 0:01:09]} dxe5 {[%emt 0:00:48]} 7. dxe5 {[%emt 0:00:30]} Nc6 {[%emt 0:04:16]} 8. Bc4 {[%emt 0:02:56]} Nb6 {[%emt 0:03:52] B22: Sicilian: 2 c3.} 9. Qxd8+ {[%emt 0:00:07]} Nxd8 {[%emt 0:00:04]} 10. Bb3 {[%emt 0:04:41]} Bg4 {[%emt 0:08:09]} 11. Nd4 {[%emt 0:00:54]} Nc6 {[%emt 0:04:45]} 12. Nxc6 {[%emt 0:01:48]} bxc6 {[%emt 0:00:17] [#]} 13. Na3 $146 {[%emt 0:12:50]} ({Predecessor:} 13. O-O e6 14. Be3 Nd5 15. Ba4 Nxe3 16. Bxc6+ Ke7 17. Bxa8 Nxf1 18. Kxf1 g5 19. Nd2 Bg7 20. Bf3 Bxf3 21. Nxf3 g4 22. Nd4 Bxe5 23. Nc6+ Kf6 24. Nxe5 {½-½ (24) Macieja,B (2430)-Tukmakov,V (2595) Copenhagen 1996}) 13... e6 {[%emt 0:02:54]} 14. Nc4 {[%emt 0:00:29]} O-O-O {[%emt 0:02:14] White must now prevent ...Nxc4.} 15. f3 {[%emt 0:07:01]} Bf5 {[%emt 0:00:14]} 16. Be3 {[%emt 0:01:24]} Nxc4 {[%emt 0:10:56]} 17. Bxc4 {[%emt 0:00:04]} Bd3 {[%emt 0:00:45]} 18. Bb3 {[%emt 0:02:50]} Kb7 {[%emt 0:01:59]} 19. Kf2 {[%emt 0:01:20]} Bb4 {[%emt 0:02:53]} 20. Rhd1 {[%emt 0:01:49]} Ba5 {[%emt 0:03:07]} 21. Rac1 {[%emt 0:01:46]} Bb6 {[%emt 0:00:12]} 22. Rd2 {[%emt 0:01:58] [#] Strongly threatening Bxb6.} Ba5 {[%emt 0:00:11]} 23. Rdd1 {[%emt 0:00:04]} Bb6 {[%emt 0:00:04]} 24. Rd2 {[%emt 0:02:40] And now Bxb6 would win.} Ba5 {[%emt 0:00:09]} 25. Rdd1 {[%emt 0:00:05] Weighted Error Value: White=0.10 (very precise) /Black=0.07 (flawless)} 1/2-1/2

[Event "FIDE Womens Grand Prix-I 2022-23"]
[Site "Nur-Sultan"]
[Date "2022.08.29"]
[Round "11.3"]
[White "Zhu, Jiner"]
[Black "Assaubayeva, Bibisara"]
[Result "1/2-1/2"]
[ECO "B50"]
[WhiteElo "2464"]
[BlackElo "2443"]
[Annotator "TA"]
[PlyCount "60"]
[EventDate "2022.09.15"]
[EventType "tourn"]
[EventCountry "KAZ"]
[SourceTitle "playchess.com"]
[Source "ChessBase"]
[SourceQuality "1"]
[TimeControl "40/5400+30:1800+30"]

{[%evp 9,60,13,33,14,16,15,22,27,17,15,18,14,20,0,14,19,22,16,0,0,9,0,-5,-20,-25,-16,-12,-12,-9,-16,-20,-18,-10,-18,-3,-3,0,-11,-11,-16,-11,-26,-16,-17,-22,-15,-11,-8,-8,-16,0,0,0]} 1. e4 {[%emt 0:00:06]} c5 {[%emt 0:00:08]} 2. Nf3 {[%emt 0:00:12]} d6 {[%emt 0:00:06]} 3. c3 {[%emt 0:00:20]} Nf6 {[%emt 0:00:14]} 4. h3 {[%emt 0:00:12]} Bd7 {[%emt 0:01:22]} 5. Bd3 {[%emt 0:01:40]} g6 {[%emt 0:06:40]} 6. O-O {[%emt 0:00:41] B50: Sicilian: 2...d6, Miscellaneous.} Bg7 {[%emt 0:03:48]} 7. Bc2 {[%emt 0:00:30]} O-O {[%emt 0:08:37]} 8. d4 {[%emt 0:00:59]} Nc6 {[%emt 0:07:27]} 9. dxc5 {[%emt 0:09:24]} dxc5 {[%emt 0:00:48]} 10. e5 {[%emt 0:03:12]} Ne8 {[%emt 0:00:25][%cal Bf6e8,Be8c7,Bc7e6,Be6d4][%mdl 32] [#]} 11. Bf4 $146 {[%emt 0:00:11]} ({Predecessor:} 11. Nbd2 Nxe5 12. Nxe5 Bxe5 13. Nc4 Bg7 14. Be3 b6 15. a4 Be6 16. Qe2 Nd6 17. Nd2 {1-0 (58) Vokhidov,S (2512)-Gabuzyan,H (2557) Chess.com INT 2020}) 11... Be6 {[%emt 0:07:50]} 12. Nbd2 {[%emt 0:02:40]} Qb6 {[%emt 0:02:17]} 13. Qc1 {[%emt 0:20:53]} Nc7 {[%emt 0:03:34]} 14. Ne4 {[%emt 0:00:26]} Bd5 {[%emt 0:04:25]} 15. b3 {[%emt 0:12:26]} Rfd8 {[%emt 0:03:29]} 16. c4 {[%emt 0:03:46]} Bxe4 {[%emt 0:00:43]} 17. Bxe4 {[%emt 0:00:06]} Ne6 {[%emt 0:02:47]} 18. Bg3 {[%emt 0:00:19]} Ned4 {[%emt 0:05:04] [#] aiming for ...Ne2+. Pair of Knights!} 19. Qe3 {[%emt 0:01:10] Inhibits Ne2+.} Rd7 {[%emt 0:02:40]} 20. Rad1 {[%emt 0:07:03]} Rad8 {[%emt 0:01:29]} 21. Bxc6 {[%emt 0:01:50]} (21. Bf4 {looks sharper.} Nxf3+ 22. Bxf3 Nd4 23. Bg4) 21... Qxc6 {[%emt 0:03:33]} (21... bxc6 {feels hotter.} 22. Bf4 a5 23. Rb1 Ne6) 22. Nxd4 {[%emt 0:00:14]} Rxd4 {[%emt 0:00:34]} 23. Rxd4 {[%emt 0:01:59]} Rxd4 {[%emt 0:01:45]} 24. Re1 {[%emt 0:00:50]} e6 {[%emt 0:01:29]} 25. Re2 {[%emt 0:01:53]} h5 {[%emt 0:02:46]} 26. Rd2 {[%emt 0:04:58] The position is equal.} Qd7 {[%emt 0:15:47]} 27. Rxd4 {[%emt 0:00:20]} cxd4 {[%emt 0:00:04]} 28. Qd3 {[%emt 0:00:06]} Qd8 {[%emt 0:00:56]} 29. f4 {[%emt 0:05:35]} Bf8 {[%emt 0:01:35]} 30. Bf2 {[%emt 0:00:13]} Bc5 {[%emt 0:00:06] An even fight not without its subleties.  Weighted Error Value: White=0.04 (flawless) /Black=0.03 (flawless)} 1/2-1/2